[Event "December 5 Early 2023"]
[Site "https://www.chess.com"]
[Date "2023.12.05"]
[Round "3"]
[White "Ljukin, Sergei"]
[Black "Antunez Soler, Luis"]
[Result "1/2-1/2"]
[Board "112"]
[TimeControl "180+1"]
[WhiteFideId "14102200"]
[BlackFideId "3513335"]
[WhiteElo "2460"]
[BlackElo "2649"]
[WhiteTeam "UKR"]
[BlackTeam "CUB"]
[WhiteClock "0:00:14"]
[BlackClock "0:00:11"]

1. e4 {[%clk 0:03:00]}  e6 {[%clk 0:03:00]} 2. d4 {[%clk 0:03:00]}  d5 {[%clk 0:03:00]} 3. Nc3 {[%clk 0:03:01]}  Nf6 {[%clk 0:03:00]} 4. Bg5 {[%clk 0:03:01]}  Be7 {[%clk 0:02:59]} 5. e5 {[%clk 0:03:01]}  Nfd7 {[%clk 0:03:00]} 6. h4 {[%clk 0:03:01]}  Nc6 {[%clk 0:02:59]} 7. Qg4 {[%clk 0:02:59]}  f6 {[%clk 0:02:59]} 8. Be3 {[%clk 0:02:25]}  fxe5 {[%clk 0:02:56]} 9. Nf3 {[%clk 0:01:36]}  exd4 {[%clk 0:02:46]} 10. Nxd4 {[%clk 0:01:35]}  Nxd4 {[%clk 0:02:28]} 11. Qxd4 {[%clk 0:01:30]}  c5 {[%clk 0:02:21]} 12. Qxg7 {[%clk 0:01:19]}  Bf6 {[%clk 0:02:17]} 13. Qh6 {[%clk 0:01:19]}  d4 {[%clk 0:02:05]} 14. Ne4 {[%clk 0:01:18]}  dxe3 {[%clk 0:01:56]} 15. Nd6+ {[%clk 0:01:18]}  Ke7 {[%clk 0:01:53]} 16. O-O-O {[%clk 0:01:18]}  Qf8 {[%clk 0:01:20]} 17. Qxe3 {[%clk 0:01:18]}  Bd4 {[%clk 0:01:19]} 18. Rxd4 {[%clk 0:01:07]}  cxd4 {[%clk 0:01:19]} 19. Qxd4 {[%clk 0:01:08]}  Qf6 {[%clk 0:00:34]} 20. Qb4 {[%clk 0:01:04]}  Kd8 {[%clk 0:00:29]} 21. Bb5 {[%clk 0:00:58]}  Rf8 {[%clk 0:00:24]} 22. Nxc8 {[%clk 0:00:45]}  Qf4+ {[%clk 0:00:16]} 23. Qxf4 {[%clk 0:00:45]}  Rxf4 {[%clk 0:00:17]} 24. Rd1 {[%clk 0:00:44]}  Kxc8 {[%clk 0:00:16]} 25. Bxd7+ {[%clk 0:00:43]}  Kc7 {[%clk 0:00:16]} 26. Bxe6 {[%clk 0:00:43]}  Rxf2 {[%clk 0:00:16]} 27. g4 {[%clk 0:00:40]}  Rd8 {[%clk 0:00:13]} 28. Rxd8 {[%clk 0:00:21]}  Kxd8 {[%clk 0:00:13]} 29. Bf5 {[%clk 0:00:17]}  h5 {[%clk 0:00:12]} 30. Be6 {[%clk 0:00:14]}  Ke7 {[%clk 0:00:12]} 31. Bc8 {[%clk 0:00:13]}  hxg4 {[%clk 0:00:11]} 32. Bxg4 {[%clk 0:00:13]}  Rf4 {[%clk 0:00:10]} 33. Bc8 {[%clk 0:00:12]}  b6 {[%clk 0:00:10]} 34. h5 {[%clk 0:00:12]}  Rh4 {[%clk 0:00:11]} 35. a4 {[%clk 0:00:11]}  Rxh5 {[%clk 0:00:11]} 36. b3 {[%clk 0:00:10]}  Rh4 {[%clk 0:00:11]} 37. Bf5 {[%clk 0:00:10]}  Kd6 {[%clk 0:00:12]} 38. Kb2 {[%clk 0:00:09]}  Kc5 {[%clk 0:00:13]} 39. Bg6 {[%clk 0:00:09]}  Rh3 {[%clk 0:00:13]} 40. Bf5 {[%clk 0:00:10]}  Rg3 {[%clk 0:00:13]} 41. Be4 {[%clk 0:00:09]}  Kb4 {[%clk 0:00:13]} 42. Bd3 {[%clk 0:00:09]}  Re3 {[%clk 0:00:12]} 43. Bc4 {[%clk 0:00:07]}  Rc3 {[%clk 0:00:11]} 44. Bd3 {[%clk 0:00:07]}  Rc5 {[%clk 0:00:11]} 45. Be2 {[%clk 0:00:07]}  Rg5 {[%clk 0:00:11]} 46. Bd3 {[%clk 0:00:07]}  Rg2 {[%clk 0:00:10]} 47. Bc4 {[%clk 0:00:07]}  Ka5 {[%clk 0:00:09]} 48. Bd3 {[%clk 0:00:06]}  a6 {[%clk 0:00:08]} 49. Ka3 {[%clk 0:00:06]}  b5 {[%clk 0:00:08]} 50. axb5 {[%clk 0:00:05]}  axb5 {[%clk 0:00:09]} 51. Kb2 {[%clk 0:00:06]}  Kb6 {[%clk 0:00:09]} 52. Be4 {[%clk 0:00:05]}  Rg3 {[%clk 0:00:10]} 53. Bd3 {[%clk 0:00:06]}  Kc5 {[%clk 0:00:10]} 54. Bf5 {[%clk 0:00:06]}  b4 {[%clk 0:00:10]} 55. Be4 {[%clk 0:00:06]}  Kd4 {[%clk 0:00:11]} 56. Bf5 {[%clk 0:00:06]}  Rg5 {[%clk 0:00:10]} 57. Bh7 {[%clk 0:00:06]}  Rh5 {[%clk 0:00:10]} 58. Bg6 {[%clk 0:00:06]}  Rh6 {[%clk 0:00:11]} 59. Bf5 {[%clk 0:00:06]}  Rc6 {[%clk 0:00:11]} 60. Bh7 {[%clk 0:00:06]}  Rc3 {[%clk 0:00:11]} 61. Bf5 {[%clk 0:00:06]}  Ke3 {[%clk 0:00:12]} 62. Bh7 {[%clk 0:00:06]}  Kd2 {[%clk 0:00:12]} 63. Bg6 {[%clk 0:00:07]}  Rg3 {[%clk 0:00:12]} 64. Bf5 {[%clk 0:00:07]}  Rg7 {[%clk 0:00:13]} 65. Be4 {[%clk 0:00:07]}  Re7 {[%clk 0:00:12]} 66. Bf5 {[%clk 0:00:07]}  Rf7 {[%clk 0:00:12]} 67. Bg6 {[%clk 0:00:08]}  Rc7 {[%clk 0:00:12]} 68. Bf5 {[%clk 0:00:08]}  Rc3 {[%clk 0:00:12]} 69. Bg6 {[%clk 0:00:08]}  Re3 {[%clk 0:00:13]} 70. Bf5 {[%clk 0:00:08]}  Re1 {[%clk 0:00:14]} 71. Bg6 {[%clk 0:00:09]}  Ke3 {[%clk 0:00:13]} 72. Bh7 {[%clk 0:00:09]}  Kd4 {[%clk 0:00:14]} 73. Bg6 {[%clk 0:00:09]}  Ke5 {[%clk 0:00:15]} 74. Bh7 {[%clk 0:00:10]}  Re3 {[%clk 0:00:15]} 75. Bg6 {[%clk 0:00:10]}  Kf6 {[%clk 0:00:15]} 76. Bd3 {[%clk 0:00:10]}  Rg3 {[%clk 0:00:14]} 77. Bh7 {[%clk 0:00:10]}  Ke5 {[%clk 0:00:14]} 78. Bd3 {[%clk 0:00:09]}  Rg7 {[%clk 0:00:15]} 79. Bc4 {[%clk 0:00:09]}  Kd4 {[%clk 0:00:16]} 80. Bb5 {[%clk 0:00:09]}  Rc7 {[%clk 0:00:16]} 81. Bd3 {[%clk 0:00:09]}  Rc3 {[%clk 0:00:16]} 82. Bh7 {[%clk 0:00:09]}  Rg3 {[%clk 0:00:16]} 83. Bf5 {[%clk 0:00:10]}  Rf3 {[%clk 0:00:16]} 84. Bh7 {[%clk 0:00:10]}  Rf4 {[%clk 0:00:15]} 85. Bg6 {[%clk 0:00:10]}  Rf6 {[%clk 0:00:15]} 86. Bd3 {[%clk 0:00:10]}  Rh6 {[%clk 0:00:14]} 87. Bf5 {[%clk 0:00:10]}  Ke5 {[%clk 0:00:14]} 88. Bd3 {[%clk 0:00:10]}  Kf4 {[%clk 0:00:15]} 89. Bc4 {[%clk 0:00:10]}  Ke3 {[%clk 0:00:14]} 90. Bd3 {[%clk 0:00:10]}  Rc6 {[%clk 0:00:14]} 91. Bf5 {[%clk 0:00:10]}  Kd4 {[%clk 0:00:13]} 92. Bh7 {[%clk 0:00:10]}  Rc7 {[%clk 0:00:13]} 93. Bg6 {[%clk 0:00:10]}  Kc5 {[%clk 0:00:13]} 94. Bf5 {[%clk 0:00:10]}  Rf7 {[%clk 0:00:13]} 95. Bg6 {[%clk 0:00:11]}  Rf6 {[%clk 0:00:14]} 96. Bh7 {[%clk 0:00:11]}  Kd4 {[%clk 0:00:14]} 97. Bd3 {[%clk 0:00:11]}  Ke5 {[%clk 0:00:13]} 98. Bc4 {[%clk 0:00:10]}  Rd6 {[%clk 0:00:13]} 99. Bd3 {[%clk 0:00:11]}  Rxd3 {[%clk 0:00:09]} 100. cxd3 {[%clk 0:00:11]}  Kd4 {[%clk 0:00:10]} 101. Kc2 {[%clk 0:00:11]}  Ke3 {[%clk 0:00:10]} 102. d4 {[%clk 0:00:12]}  Kxd4 {[%clk 0:00:10]} 103. Kd2 {[%clk 0:00:12]}  Ke4 {[%clk 0:00:10]} 104. Ke2 {[%clk 0:00:12]}  Kd4 {[%clk 0:00:11]} 105. Kd2 {[%clk 0:00:13]}  Ke4 {[%clk 0:00:11]} 106. Ke2 {[%clk 0:00:13]}  Kd4 {[%clk 0:00:11]} 107. Kd2 {[%clk 0:00:14]} 1/2-1/2

[Event "December 5 Early 2023"]
[Site "https://www.chess.com"]
[Date "2023.12.05"]
[Round "3"]
[White "Gubajdullin, Alexei"]
[Black "Berezin, Viktor"]
[Result "1-0"]
[Board "114"]
[TimeControl "180+1"]
[WhiteFideId "4141202"]
[BlackFideId "14107872"]
[WhiteElo "2647"]
[BlackElo "2454"]
[WhiteTeam "RUS"]
[BlackTeam "UKR"]
[WhiteClock "0:01:27"]
[BlackClock "0:00:00"]

1. b3 {[%clk 0:03:00]}  d6 {[%clk 0:02:47]} 2. Bb2 {[%clk 0:02:59]}  e5 {[%clk 0:02:47]} 3. c4 {[%clk 0:02:59]}  g6 {[%clk 0:02:46]} 4. e3 {[%clk 0:02:58]}  Bg7 {[%clk 0:02:46]} 5. h4 {[%clk 0:02:59]}  h5 {[%clk 0:02:46]} 6. Nf3 {[%clk 0:02:58]}  Nf6 {[%clk 0:02:45]} 7. Ng5 {[%clk 0:02:58]}  Nc6 {[%clk 0:02:43]} 8. Nc3 {[%clk 0:02:58]}  O-O {[%clk 0:02:43]} 9. Bd3 {[%clk 0:02:57]}  Qe7 {[%clk 0:02:35]} 10. Nce4 {[%clk 0:02:55]}  Nxe4 {[%clk 0:02:08]} 11. Bxe4 {[%clk 0:02:55]}  Nd8 {[%clk 0:02:01]} 12. d4 {[%clk 0:02:36]}  Ne6 {[%clk 0:01:15]} 13. Nxe6 {[%clk 0:02:32]}  Bxe6 {[%clk 0:00:51]} 14. Bxb7 {[%clk 0:02:22]}  Rab8 {[%clk 0:00:48]} 15. Bf3 {[%clk 0:02:21]}  a5 {[%clk 0:00:43]} 16. d5 {[%clk 0:02:03]}  Bd7 {[%clk 0:00:41]} 17. a4 {[%clk 0:02:01]}  f5 {[%clk 0:00:24]} 18. Be2 {[%clk 0:02:00]}  f4 {[%clk 0:00:22]} 19. e4 {[%clk 0:01:59]}  c5 {[%clk 0:00:16]} 20. Bc3 {[%clk 0:01:57]}  Qd8 {[%clk 0:00:16]} 21. Rb1 {[%clk 0:01:54]}  Bf6 {[%clk 0:00:09]} 22. g4 {[%clk 0:01:50]}  hxg4 {[%clk 0:00:07]} 23. Bxg4 {[%clk 0:01:50]}  Qc8 {[%clk 0:00:07]} 24. Bxd7 {[%clk 0:01:47]}  Qxd7 {[%clk 0:00:08]} 25. Rg1 {[%clk 0:01:37]}  Kf7 {[%clk 0:00:06]} 26. h5 {[%clk 0:01:32]}  g5 {[%clk 0:00:03]} 27. Bxa5 {[%clk 0:01:31]}  Rh8 {[%clk 0:00:00]} 28. Qf3 {[%clk 0:01:27]} 1-0

[Event "December 5 Early 2023"]
[Site "https://www.chess.com"]
[Date "2023.12.05"]
[Round "3"]
[White "Gontcharov, Vladislav"]
[Black "Ozen, Metehan"]
[Result "0-1"]
[Board "115"]
[TimeControl "180+1"]
[WhiteFideId "4123492"]
[BlackFideId "34596054"]
[WhiteElo "2647"]
[BlackElo "2453"]
[WhiteTeam "RUS"]
[BlackTeam "TUR"]
[WhiteClock "0:00:17"]
[BlackClock "0:00:05"]

1. d4 {[%clk 0:03:00]}  Nf6 {[%clk 0:02:59]} 2. c4 {[%clk 0:03:00]}  e6 {[%clk 0:02:59]} 3. Nf3 {[%clk 0:03:00]}  c5 {[%clk 0:02:57]} 4. Nc3 {[%clk 0:02:57]}  cxd4 {[%clk 0:02:57]} 5. Nxd4 {[%clk 0:02:57]}  d5 {[%clk 0:02:58]} 6. g3 {[%clk 0:02:56]}  Nc6 {[%clk 0:02:58]} 7. Bg2 {[%clk 0:02:56]}  Bc5 {[%clk 0:02:52]} 8. Nb3 {[%clk 0:02:52]}  Bb6 {[%clk 0:02:52]} 9. cxd5 {[%clk 0:02:51]}  exd5 {[%clk 0:02:53]} 10. O-O {[%clk 0:02:51]}  O-O {[%clk 0:02:53]} 11. Bg5 {[%clk 0:02:50]}  d4 {[%clk 0:02:52]} 12. Nd5 {[%clk 0:02:34]}  Be6 {[%clk 0:02:31]} 13. Bxf6 {[%clk 0:02:34]}  gxf6 {[%clk 0:02:32]} 14. Nf4 {[%clk 0:02:34]}  Qd6 {[%clk 0:02:26]} 15. Nd2 {[%clk 0:02:07]}  f5 {[%clk 0:02:16]} 16. Nh5 {[%clk 0:02:02]}  Ne5 {[%clk 0:01:42]} 17. Nf3 {[%clk 0:01:48]}  Ng6 {[%clk 0:01:31]} 18. Qd2 {[%clk 0:01:46]}  f4 {[%clk 0:01:22]} 19. Nxf4 {[%clk 0:01:26]}  Nxf4 {[%clk 0:01:20]} 20. gxf4 {[%clk 0:01:26]}  Rfe8 {[%clk 0:01:17]} 21. Kh1 {[%clk 0:01:17]}  Bd5 {[%clk 0:01:09]} 22. Rg1 {[%clk 0:01:15]}  Kh8 {[%clk 0:01:06]} 23. Ng5 {[%clk 0:01:13]}  f6 {[%clk 0:00:54]} 24. Bxd5 {[%clk 0:01:04]}  Qxd5+ {[%clk 0:00:53]} 25. Nf3 {[%clk 0:01:04]}  d3 {[%clk 0:00:54]} 26. Qc3 {[%clk 0:00:59]}  Re6 {[%clk 0:00:27]} 27. Rad1 {[%clk 0:00:57]}  Qh5 {[%clk 0:00:14]} 28. Rxd3 {[%clk 0:00:44]}  Rf8 {[%clk 0:00:13]} 29. Qd2 {[%clk 0:00:27]}  Bxf2 {[%clk 0:00:12]} 30. Rg2 {[%clk 0:00:27]}  Bb6 {[%clk 0:00:12]} 31. Rd6 {[%clk 0:00:25]}  Rxd6 {[%clk 0:00:10]} 32. Qxd6 {[%clk 0:00:25]}  Bc5 {[%clk 0:00:09]} 33. Qe6 {[%clk 0:00:22]}  h6 {[%clk 0:00:08]} 34. h3 {[%clk 0:00:21]}  Re8 {[%clk 0:00:07]} 35. Qg4 {[%clk 0:00:20]}  Qxg4 {[%clk 0:00:07]} 36. hxg4 {[%clk 0:00:21]}  Re4 {[%clk 0:00:07]} 37. Nh4 {[%clk 0:00:21]}  Kg7 {[%clk 0:00:07]} 38. f5 {[%clk 0:00:21]}  Rd4 {[%clk 0:00:03]} 39. Nf3 {[%clk 0:00:20]}  Rd1+ {[%clk 0:00:03]} 40. Rg1 {[%clk 0:00:19]}  Bxg1 {[%clk 0:00:02]} 41. Nxg1 {[%clk 0:00:20]}  Ra1 {[%clk 0:00:03]} 42. a3 {[%clk 0:00:19]}  Rb1 {[%clk 0:00:03]} 43. Kg2 {[%clk 0:00:20]}  Rxb2 {[%clk 0:00:04]} 44. a4 {[%clk 0:00:20]}  Ra2 {[%clk 0:00:05]} 45. Nf3 {[%clk 0:00:20]}  Rxa4 {[%clk 0:00:06]} 46. Kg3 {[%clk 0:00:20]}  Re4 {[%clk 0:00:05]} 47. e3 {[%clk 0:00:17]}  Rxe3 {[%clk 0:00:05]} 0-1

[Event "December 5 Early 2023"]
[Site "https://www.chess.com"]
[Date "2023.12.05"]
[Round "3"]
[White "Rojas Alarcon, Julian Antonio"]
[Black "Jovic, Stanoje"]
[Result "0-1"]
[Board "117"]
[TimeControl "180+1"]
[WhiteFideId "5107407"]
[BlackFideId "905020"]
[WhiteElo "2644"]
[BlackElo "2450"]
[WhiteTeam "MEX"]
[BlackTeam "SRB"]
[WhiteClock "0:00:07"]
[BlackClock "0:00:38"]

1. d4 {[%clk 0:03:00]}  Nf6 {[%clk 0:02:58]} 2. c4 {[%clk 0:03:00]}  e6 {[%clk 0:02:59]} 3. Nc3 {[%clk 0:03:00]}  Bb4 {[%clk 0:02:58]} 4. Qc2 {[%clk 0:03:00]}  d5 {[%clk 0:02:58]} 5. a3 {[%clk 0:02:53]}  Bxc3+ {[%clk 0:02:56]} 6. Qxc3 {[%clk 0:02:54]}  O-O {[%clk 0:02:55]} 7. Bg5 {[%clk 0:02:52]}  c6 {[%clk 0:02:52]} 8. e3 {[%clk 0:02:47]}  Nbd7 {[%clk 0:02:52]} 9. Qc2 {[%clk 0:02:42]}  a5 {[%clk 0:02:50]} 10. Nf3 {[%clk 0:02:40]}  a4 {[%clk 0:02:49]} 11. Bd3 {[%clk 0:02:39]}  Qa5+ {[%clk 0:02:48]} 12. Kf1 {[%clk 0:02:35]}  dxc4 {[%clk 0:02:42]} 13. Bxc4 {[%clk 0:02:34]}  b5 {[%clk 0:02:42]} 14. Bd3 {[%clk 0:02:33]}  b4 {[%clk 0:02:37]} 15. axb4 {[%clk 0:02:30]}  Qxb4 {[%clk 0:02:36]} 16. h3 {[%clk 0:02:13]}  Ba6 {[%clk 0:02:35]} 17. Ne1 {[%clk 0:02:07]}  c5 {[%clk 0:02:27]} 18. Bxf6 {[%clk 0:02:03]}  gxf6 {[%clk 0:02:22]} 19. Kg1 {[%clk 0:01:50]}  cxd4 {[%clk 0:02:20]} 20. Bxh7+ {[%clk 0:01:37]}  Kh8 {[%clk 0:02:20]} 21. Bd3 {[%clk 0:01:30]}  dxe3 {[%clk 0:02:16]} 22. fxe3 {[%clk 0:01:31]}  Ne5 {[%clk 0:02:03]} 23. Bxa6 {[%clk 0:01:21]}  Rxa6 {[%clk 0:02:02]} 24. Qf2 {[%clk 0:01:16]}  f5 {[%clk 0:01:43]} 25. Qg3 {[%clk 0:01:11]}  Qxb2 {[%clk 0:01:39]} 26. Rd1 {[%clk 0:01:06]}  a3 {[%clk 0:01:33]} 27. Nc2 {[%clk 0:00:54]}  Ng6 {[%clk 0:01:28]} 28. Na1 {[%clk 0:00:51]}  Qe5 {[%clk 0:01:19]} 29. Qf2 {[%clk 0:00:47]}  Rb8 {[%clk 0:01:15]} 30. g3 {[%clk 0:00:43]}  Rb2 {[%clk 0:01:12]} 31. Qf3 {[%clk 0:00:40]}  Qe4 {[%clk 0:01:09]} 32. Qxe4 {[%clk 0:00:27]}  fxe4 {[%clk 0:01:09]} 33. Rh2 {[%clk 0:00:18]}  Ne5 {[%clk 0:01:08]} 34. Rc2 {[%clk 0:00:17]}  Rab6 {[%clk 0:01:00]} 35. Kf1 {[%clk 0:00:15]}  Nd3 {[%clk 0:00:53]} 36. Rc8+ {[%clk 0:00:10]}  Kg7 {[%clk 0:00:52]} 37. Nc2 {[%clk 0:00:11]}  a2 {[%clk 0:00:49]} 38. Ke2 {[%clk 0:00:11]}  Rb1 {[%clk 0:00:45]} 39. Ra8 {[%clk 0:00:12]}  R6b2 {[%clk 0:00:41]} 40. Kd2 {[%clk 0:00:07]}  Nb4 {[%clk 0:00:38]} 0-1

[Event "December 5 Early 2023"]
[Site "https://www.chess.com"]
[Date "2023.12.05"]
[Round "3"]
[White "Topalov, Aleksandar"]
[Black "Moksh Amit Doshi"]
[Result "0-1"]
[Board "120"]
[TimeControl "180+1"]
[WhiteFideId "925659"]
[BlackFideId "25064967"]
[WhiteElo "2447"]
[BlackElo "2638"]
[WhiteTeam "SRB"]
[BlackTeam "IND"]
[WhiteClock "0:00:00"]
[BlackClock "0:01:11"]

1. b3 {[%clk 0:03:00]}  e5 {[%clk 0:02:45]} 2. Bb2 {[%clk 0:03:01]}  Nc6 {[%clk 0:02:45]} 3. e3 {[%clk 0:03:00]}  Nf6 {[%clk 0:02:45]} 4. Bb5 {[%clk 0:03:00]}  e4 {[%clk 0:02:46]} 5. d3 {[%clk 0:02:56]}  exd3 {[%clk 0:02:40]} 6. Bxd3 {[%clk 0:02:50]}  d5 {[%clk 0:02:40]} 7. a3 {[%clk 0:02:50]}  Bd6 {[%clk 0:02:40]} 8. Nd2 {[%clk 0:02:50]}  O-O {[%clk 0:02:40]} 9. h3 {[%clk 0:02:50]}  Re8 {[%clk 0:02:38]} 10. Ngf3 {[%clk 0:02:49]}  Ne4 {[%clk 0:02:37]} 11. O-O {[%clk 0:02:47]}  Bf5 {[%clk 0:02:37]} 12. Qe2 {[%clk 0:02:36]}  Qd7 {[%clk 0:02:27]} 13. c4 {[%clk 0:02:24]}  Nxd2 {[%clk 0:02:18]} 14. Bxf5 {[%clk 0:02:16]}  Qxf5 {[%clk 0:02:15]} 15. Qxd2 {[%clk 0:02:11]}  dxc4 {[%clk 0:02:15]} 16. bxc4 {[%clk 0:02:11]}  Rad8 {[%clk 0:02:15]} 17. Qc3 {[%clk 0:02:04]}  Ne5 {[%clk 0:02:14]} 18. Nxe5 {[%clk 0:01:59]}  Bxe5 {[%clk 0:02:15]} 19. Qb3 {[%clk 0:01:59]}  Bxb2 {[%clk 0:02:08]} 20. Qxb2 {[%clk 0:01:59]}  b6 {[%clk 0:02:08]} 21. Rad1 {[%clk 0:01:56]}  c5 {[%clk 0:02:09]} 22. a4 {[%clk 0:01:51]}  h6 {[%clk 0:02:08]} 23. a5 {[%clk 0:01:50]}  Qe6 {[%clk 0:02:04]} 24. axb6 {[%clk 0:01:49]}  axb6 {[%clk 0:02:04]} 25. Qb5 {[%clk 0:01:43]}  Rxd1 {[%clk 0:01:57]} 26. Rxd1 {[%clk 0:01:42]}  Ra8 {[%clk 0:01:58]} 27. Rb1 {[%clk 0:01:17]}  Ra2 {[%clk 0:01:56]} 28. Qb3 {[%clk 0:00:41]}  Rd2 {[%clk 0:01:52]} 29. Qc3 {[%clk 0:00:36]}  Rxf2 {[%clk 0:01:50]} 30. Kxf2 {[%clk 0:00:33]}  Qf5+ {[%clk 0:01:50]} 31. Ke2 {[%clk 0:00:28]}  Qxb1 {[%clk 0:01:50]} 32. Qd3 {[%clk 0:00:19]}  Qb2+ {[%clk 0:01:35]} 33. Kf3 {[%clk 0:00:16]}  Qf6+ {[%clk 0:01:34]} 34. Ke2 {[%clk 0:00:15]}  g6 {[%clk 0:01:33]} 35. Qb3 {[%clk 0:00:09]}  h5 {[%clk 0:01:33]} 36. Qd3 {[%clk 0:00:08]}  Kg7 {[%clk 0:01:33]} 37. Qb3 {[%clk 0:00:08]}  h4 {[%clk 0:01:34]} 38. Qd3 {[%clk 0:00:06]}  Qg5 {[%clk 0:01:33]} 39. Qe4 {[%clk 0:00:07]}  Qg3 {[%clk 0:01:31]} 40. Qd5 {[%clk 0:00:04]}  Qc7 {[%clk 0:01:17]} 41. Kf2 {[%clk 0:00:02]}  Qe7 {[%clk 0:01:17]} 42. Kg1 {[%clk 0:00:01]}  Qxe3+ {[%clk 0:01:17]} 43. Kh1 {[%clk 0:00:02]}  Qc1+ {[%clk 0:01:14]} 44. Kh2 {[%clk 0:00:02]}  Qf4+ {[%clk 0:01:15]} 45. Kh1 {[%clk 0:00:02]}  g5 {[%clk 0:01:16]} 46. Qc6 {[%clk 0:00:02]}  Qxc4 {[%clk 0:01:12]} 47. Qxb6 {[%clk 0:00:01]}  Qc1+ {[%clk 0:01:13]} 48. Kh2 {[%clk 0:00:01]}  Qf4+ {[%clk 0:01:14]} 49. Kh1 {[%clk 0:00:02]}  c4 {[%clk 0:01:15]} 50. Qc6 {[%clk 0:00:02]}  Qc1+ {[%clk 0:01:11]} 51. Kh2 {[%clk 0:00:02]}  c3 {[%clk 0:01:12]} 52. Qc4 {[%clk 0:00:00]}  Qf4+ {[%clk 0:01:11]} 0-1

[Event "December 5 Early 2023"]
[Site "https://www.chess.com"]
[Date "2023.12.05"]
[Round "3"]
[White "Kotlyar, Kirill"]
[Black "Kukreja Sankalp"]
[Result "0-1"]
[Board "121"]
[TimeControl "180+1"]
[WhiteFideId "24145599"]
[BlackFideId "45027676"]
[WhiteElo "2637"]
[BlackElo "2444"]
[WhiteTeam "RUS"]
[BlackTeam "IND"]
[WhiteClock "0:00:20"]
[BlackClock "0:00:06"]

1. e4 {[%clk 0:02:57]}  c5 {[%clk 0:02:58]} 2. Nf3 {[%clk 0:02:56]}  g6 {[%clk 0:02:58]} 3. d4 {[%clk 0:02:57]}  cxd4 {[%clk 0:02:59]} 4. Nxd4 {[%clk 0:02:57]}  Bg7 {[%clk 0:03:00]} 5. c4 {[%clk 0:02:58]}  Nc6 {[%clk 0:03:01]} 6. Be3 {[%clk 0:02:58]}  Nf6 {[%clk 0:02:57]} 7. Nc3 {[%clk 0:02:58]}  O-O {[%clk 0:02:56]} 8. Be2 {[%clk 0:02:58]}  b6 {[%clk 0:02:56]} 9. O-O {[%clk 0:02:58]}  Bb7 {[%clk 0:02:56]} 10. f3 {[%clk 0:02:54]}  e6 {[%clk 0:02:56]} 11. Qd2 {[%clk 0:02:54]}  d5 {[%clk 0:02:55]} 12. Nxc6 {[%clk 0:02:42]}  Bxc6 {[%clk 0:02:54]} 13. cxd5 {[%clk 0:02:25]}  exd5 {[%clk 0:02:54]} 14. e5 {[%clk 0:02:25]}  Ne8 {[%clk 0:02:30]} 15. f4 {[%clk 0:02:22]}  Nc7 {[%clk 0:02:30]} 16. Rad1 {[%clk 0:02:21]}  Qe7 {[%clk 0:02:30]} 17. Bf3 {[%clk 0:02:17]}  Rfd8 {[%clk 0:02:30]} 18. Qf2 {[%clk 0:02:09]}  Rac8 {[%clk 0:02:24]} 19. Rd2 {[%clk 0:02:07]}  f6 {[%clk 0:02:14]} 20. exf6 {[%clk 0:01:55]}  Bxf6 {[%clk 0:02:14]} 21. Bd4 {[%clk 0:01:55]}  Bxd4 {[%clk 0:02:12]} 22. Rxd4 {[%clk 0:01:54]}  Ne6 {[%clk 0:01:41]} 23. Rd2 {[%clk 0:01:29]}  Qc5 {[%clk 0:01:19]} 24. Bg4 {[%clk 0:01:18]}  Qd6 {[%clk 0:00:11]} 25. Re1 {[%clk 0:01:16]}  Re8 {[%clk 0:00:11]} 26. Ne2 {[%clk 0:01:15]}  Nc5 {[%clk 0:00:10]} 27. Bxc8 {[%clk 0:01:13]}  Ne4 {[%clk 0:00:10]} 28. Qd4 {[%clk 0:01:10]}  Nxd2 {[%clk 0:00:10]} 29. Qxd2 {[%clk 0:01:11]}  Rxc8 {[%clk 0:00:10]} 30. Nd4 {[%clk 0:01:11]}  Qc5 {[%clk 0:00:11]} 31. f5 {[%clk 0:01:07]}  Bd7 {[%clk 0:00:09]} 32. fxg6 {[%clk 0:01:06]}  hxg6 {[%clk 0:00:10]} 33. Kh1 {[%clk 0:01:06]}  Rf8 {[%clk 0:00:10]} 34. Nf3 {[%clk 0:01:04]}  Bg4 {[%clk 0:00:09]} 35. Ne5 {[%clk 0:01:03]}  Bf5 {[%clk 0:00:09]} 36. Nf3 {[%clk 0:00:54]}  Be4 {[%clk 0:00:10]} 37. Nd4 {[%clk 0:00:48]}  Qd6 {[%clk 0:00:09]} 38. Qe3 {[%clk 0:00:40]}  Qe5 {[%clk 0:00:09]} 39. Nf3 {[%clk 0:00:39]}  Qh5 {[%clk 0:00:09]} 40. Rf1 {[%clk 0:00:36]}  Rf7 {[%clk 0:00:10]} 41. Qc3 {[%clk 0:00:34]}  Rh7 {[%clk 0:00:08]} 42. h3 {[%clk 0:00:32]}  Qf5 {[%clk 0:00:07]} 43. Kh2 {[%clk 0:00:25]}  Rf7 {[%clk 0:00:07]} 44. Kg1 {[%clk 0:00:21]}  Qf4 {[%clk 0:00:07]} 45. Nd2 {[%clk 0:00:20]}  Qg5 {[%clk 0:00:06]} 46. Qc8+ {[%clk 0:00:20]}  Kg7 {[%clk 0:00:06]} 47. Qc3+ {[%clk 0:00:20]}  Kh6 {[%clk 0:00:06]} 48. Rxf7 {[%clk 0:00:20]}  Qxg2# {[%clk 0:00:06]} 0-1

[Event "December 5 Early 2023"]
[Site "https://www.chess.com"]
[Date "2023.12.05"]
[Round "3"]
[White "Ehlvest, Jaan"]
[Black "Barak, Gil"]
[Result "1-0"]
[Board "123"]
[TimeControl "180+1"]
[WhiteFideId "4500016"]
[BlackFideId "2812690"]
[WhiteElo "2630"]
[BlackElo "2443"]
[WhiteTeam "USA"]
[BlackTeam "ISR"]
[WhiteClock "0:02:48"]
[BlackClock "0:02:00"]

1. e4 {[%clk 0:03:00]}  e5 {[%clk 0:03:00]} 2. Nf3 {[%clk 0:02:56]}  Nc6 {[%clk 0:03:00]} 3. Bb5 {[%clk 0:02:56]}  a6 {[%clk 0:02:59]} 4. Ba4 {[%clk 0:02:56]}  Nf6 {[%clk 0:02:59]} 5. O-O {[%clk 0:02:56]}  d6 {[%clk 0:02:44]} 6. Bxc6+ {[%clk 0:02:54]}  bxc6 {[%clk 0:02:44]} 7. d4 {[%clk 0:02:55]}  exd4 {[%clk 0:02:44]} 8. Nxd4 {[%clk 0:02:55]}  Bd7 {[%clk 0:02:44]} 9. Qf3 {[%clk 0:02:54]}  Be7 {[%clk 0:02:40]} 10. e5 {[%clk 0:02:54]}  dxe5 {[%clk 0:02:32]} 11. Nxc6 {[%clk 0:02:54]}  Bxc6 {[%clk 0:02:33]} 12. Qxc6+ {[%clk 0:02:54]}  Nd7 {[%clk 0:02:33]} 13. Rd1 {[%clk 0:02:53]}  Bd6 {[%clk 0:02:33]} 14. Nc3 {[%clk 0:02:53]}  O-O {[%clk 0:02:28]} 15. Ne4 {[%clk 0:02:52]}  Nf6 {[%clk 0:02:14]} 16. Bg5 {[%clk 0:02:49]}  Qd7 {[%clk 0:02:00]} 17. Nxf6+ {[%clk 0:02:48]} 1-0